fUST/lending_fUST_20241126
["ID","MTS","AMOUNT","RATE_DAILY","PERIOD"]
[343345651,1732583229507,-194.428468,0.00029653,7]
[343345652,1732583229530,-194.428468,0.00029653,7]
[343345653,1732583229551,-194.428468,0.00029653,7]
[343345654,1732583229571,-194.428468,0.00029653,7]
[343345655,1732583229592,-194.428468,0.00029653,7]
[343345656,1732583229612,-194.428468,0.00029653,7]
[343345657,1732583229633,-194.428468,0.00029653,7]
[343345658,1732583229657,-194.428468,0.00029653,7]
[343345659,1732583229681,-194.428468,0.00029653,7]
[343345660,1732583229703,-194.428468,0.00029653,7]
[343345661,1732583229725,-194.428468,0.00029653,7]
[343345662,1732583229747,-194.428468,0.00029653,7]
[343345663,1732583229767,-194.428468,0.00029653,7]
[343345664,1732583229788,-194.428468,0.00029653,7]
[343345665,1732583229810,-194.428468,0.00029653,7]
[343345666,1732583229830,-194.428468,0.00029653,7]
[343345667,1732583229850,-194.428466,0.00029653,7]
[343345668,1732583229870,-151.0,0.00029653,7]
[343345669,1732583229891,-151.0,0.00029653,7]
[343345670,1732583229914,-151.0,0.00029653,7]
[343345671,1732583229935,-151.0,0.00029653,7]
[343345672,1732583229955,-241.660195,0.00029653,7]
[343345673,1732583229975,-151.0,0.00029653,7]
[343345674,1732583229995,-151.0,0.00029653,7]
[343345675,1732583230016,-151.0,0.00029653,7]
[343345676,1732583230036,-202.093098,0.00029653,7]
[343345677,1732583230057,-151.0,0.00029653,7]
[343345678,1732583230077,-151.0,0.00029653,7]
[343345679,1732583230101,-151.0,0.00029653,7]
[343345680,1732583230125,-151.0,0.00029653,7]
[343345681,1732583230146,-151.0,0.00029653,7]
[343345682,1732583230171,-151.0,0.00029653,7]
[343345683,1732583230191,-151.0,0.00029653,7]
[343345684,1732583230212,-151.0,0.00029653,7]
[343345685,1732583230233,-151.0,0.00029653,7]
[343345686,1732583230253,-151.0,0.00029653,7]
[343345687,1732583230274,-151.0,0.00029653,7]
[343345688,1732583230295,-151.0,0.00029653,7]
[343345689,1732583230315,-151.0,0.00029653,7]
[343345690,1732583230335,-151.0,0.00029653,7]
[343345691,1732583230355,-151.0,0.00029653,7]
[343345692,1732583230375,-151.0,0.00029653,7]
[343345693,1732583230396,-151.0,0.00029653,7]
[343345694,1732583230421,-200.251522,0.00029653,7]
[343345695,1732583230441,-151.0,0.00029653,7]
[343345696,1732583230464,-151.0,0.00029653,7]
[343345697,1732583230485,-291.095374,0.00029653,7]
[343345698,1732583230508,-315.295529,0.00029653,7]
[343345699,1732583230530,-315.295529,0.00029653,7]
[343345700,1732583230552,-315.295529,0.00029653,7]
[343345701,1732583230572,-315.295529,0.00029653,7]
[343345702,1732583230593,-315.295529,0.00029653,7]
[343345703,1732583230614,-312.67168911,0.00029653,7]
[343345704,1732583254370,-2.62383989,0.00029653,7]
[343345705,1732583254401,-218.51415645,0.00029653,7]
[343345709,1732583348185,-300.18112998,0.00024953,2]
[343345710,1732583348208,-165.312151,0.00028366,2]
[343345711,1732583348234,-484.71,0.000296,2]
[343345712,1732583348261,-440.08,0.00029643,3]
[343345713,1732583348292,-300.0,0.00029652,2]
[343345714,1732583348317,-96.78137255,0.00029653,7]
[343345715,1732583348341,-315.295529,0.00029653,7]
[343345716,1732583348362,-315.295529,0.00029653,7]
[343345717,1732583348383,-315.295529,0.00029653,7]
[343345718,1732583348404,-315.295529,0.00029653,7]
[343345719,1732583348426,-315.295529,0.00029653,7]
[343345720,1732583348447,-315.295529,0.00029653,7]
[343345721,1732583348468,-315.295529,0.00029653,7]
[343345722,1732583348488,-315.295529,0.00029653,7]
[343345723,1732583348512,-315.295529,0.00029653,7]
[343345724,1732583348533,-315.295529,0.00029653,7]
[343345725,1732583348554,-315.295529,0.00029653,7]
[343345726,1732583348575,-315.295529,0.00029653,7]
[343345727,1732583348595,-315.29553295,0.00029653,7]
[343345728,1732583348615,-151.0,0.00029653,7]
[343345729,1732583348635,-151.0,0.00029653,7]
[343345730,1732583348656,-151.0,0.00029653,7]
[343345731,1732583348679,-151.0,0.00029653,7]
[343345732,1732583348701,-151.0,0.00029653,7]
[343345733,1732583348723,-151.0,0.00029653,7]
[343345734,1732583348746,-200.577103,0.00029653,7]
[343345735,1732583348776,-212.7413024,0.000297,30]
[343345736,1732583348799,-150.0,0.00029871,120]
[343345737,1732583348820,-150.0,0.00029877,2]
[343345738,1732583348841,-150.0,0.00029877,2]
[343345739,1732583348862,-235.0,0.0003,30]
[343345740,1732583348883,-176.0,0.0003,2]
[343345741,1732583348903,-160.41,0.0003,2]
[343345742,1732583348924,-1548.67016841,0.00030113,2]
[343345743,1732583348945,-178.0596771,0.00030137,120]
[343345744,1732583348966,-500.0,0.00032335,10]
[343345745,1732583348987,-168.87236497,0.00032335,10]
[343345746,1732583349010,-150.18,0.00032335,10]
[343345747,1732583349031,-150.18,0.00032335,10]
[343345748,1732583349053,-500.0,0.00032335,10]
[343345749,1732583349075,-500.0,0.00032609,10]
[343345750,1732583349096,-150.18,0.00032609,10]
[343345751,1732583349120,-150.18,0.00032609,10]
[343345752,1732583349142,-500.0,0.00032609,10]
[343345753,1732583349162,-150.0,0.00032877,2]
[343345754,1732583349184,-500.0,0.00032883,10]
[343345755,1732583349205,-150.18,0.00032883,10]
[343345756,1732583349226,-163.04299126,0.00032883,10]
[343345757,1732583349247,-500.0,0.00032883,10]
[343345758,1732583349270,-176.0,0.00033,2]
[343345759,1732583349292,-500.0,0.00033157,10]
[343345760,1732583349312,-153.39601833,0.00033157,10]
[343345761,1732583349333,-914.01706257,0.00033157,10]
[343345762,1732583349355,-500.0,0.00033431,10]
[343345763,1732583366157,178.0,0.0003,2]
[343345802,1732583432421,-2922.28400768,0.00029653,10]
[343345812,1732583432506,-9393.4,0.00029653,10]
[343346040,1732583438477,-98.3860082,0.00029653,10]
[343346047,1732583438531,-1948342.37781552,0.00029653,10]
[343346123,1732583439248,-1956.46853953,0.00029653,10]
[343346213,1732583440363,-93902.70790841,0.00029653,10]
[343346214,1732583440375,-940.6,0.00029653,10]
[343346229,1732583443377,-2386.04080242,0.00029653,10]
[343346230,1732583443389,-520042.71243228,0.00029653,10]
[343346236,1732583446051,164.441022,0.00024953,2]
[343346238,1732583459488,436.24,0.000297,2]
[343346239,1732583474530,151.0,0.00029653,7]
[343346240,1732583474975,151.0,0.00029653,7]
[343346241,1732583475388,151.0,0.00029653,7]
[343346242,1732583476279,151.0,0.00029653,7]
[343346243,1732583477309,151.0,0.00029653,7]
[343346244,1732583477789,151.0,0.00029653,7]
[343346245,1732583478250,252.725565,0.00029653,7]
[343346246,1732583497017,500.0,0.00029652,2]
[343346247,1732583497607,404.70019048,0.00029652,2]
[343346248,1732583497630,95.29980952,0.00029652,2]
[343346249,1732583497943,500.0,0.00029652,2]
[343346250,1732583498299,636.73743965,0.00029652,2]
[343346251,1732583499950,500.0,0.00029652,2]
[343346252,1732583536500,212.7413024,0.000297,30]
[343346254,1732583958267,221.695395,0.00013973,2]
[343346260,1732584353151,-2395.69257482,0.0002859,2]
[343346262,1732584431142,-271.93252083,0.0002834,2]
[343346263,1732584437115,-1757.86361776,0.0002834,2]
[343346265,1732584450133,-216.13415096,0.0002834,2]
[343346268,1732584512076,929.43508205,0.0002,2]
[343346270,1732584525907,1108.3458645,0.000109,2]
[343346271,1732584548126,-3357.65762645,0.0002834,2]
[343346272,1732584548149,-300.0,0.00028589,2]
[343346273,1732584548171,-4354.02323868,0.0002859,2]
[343346274,1732584551172,-500.0,0.00029399,2]
[343346275,1732584551198,-500.0,0.00029399,2]
[343346276,1732584551219,-500.0,0.00029399,2]
[343346277,1732584551240,-500.0,0.00029399,2]
[343346278,1732584551261,-500.0,0.00029399,2]
[343346279,1732584551282,-280.50108993,0.00029399,2]
[343346280,1732584551305,-573.24303623,0.00029399,2]
[343346281,1732584551325,-1416.94291709,0.000294,7]
[343346282,1732584551346,-1416.94291709,0.000294,7]
[343346283,1732584551367,-1416.94291709,0.000294,7]
[343346284,1732584551389,-1416.94291709,0.000294,7]
[343346285,1732584551410,-1416.94291709,0.000294,7]
[343346286,1732584551430,-1416.94291709,0.000294,7]
[343346287,1732584551454,-1416.94291709,0.000294,7]
[343346288,1732584551474,-1416.94291709,0.000294,7]
[343346289,1732584551494,-1416.94291709,0.000294,7]
[343346290,1732584551515,-1416.94191709,0.000294,7]
[343346291,1732584551536,-164.36,0.000294,22]
[343346292,1732584551556,-2131.02516179,0.000294,7]
[343346293,1732584551577,-200.7968787,0.000294,30]
[343346294,1732584551598,-457.11166219,0.000294,7]
[343346295,1732584551619,-188.0,0.000296,10]
[343346296,1732584551640,-500.0,0.00029652,2]
[343346297,1732584551662,-500.0,0.00029652,2]
[343346298,1732584551682,-500.0,0.00029652,2]
[343346299,1732584551706,-500.0,0.00029652,2]
[343346300,1732584551728,-500.0,0.00029652,2]
[343346301,1732584551843,-500.0,0.00029652,2]
[343346302,1732584551868,-500.0,0.00029652,2]
[343346303,1732584551889,-500.0,0.00029652,2]
[343346304,1732584551910,-500.0,0.00029652,2]
[343346305,1732584551930,-500.0,0.00029652,2]
[343346306,1732584551954,-500.0,0.00029652,2]
[343346307,1732584551975,-500.0,0.00029652,2]
[343346308,1732584551997,-500.0,0.00029652,2]
[343346309,1732584552023,-500.0,0.00029652,2]
[343346310,1732584552044,-500.0,0.00029652,2]
[343346311,1732584552067,-500.0,0.00029652,2]
[343346312,1732584552088,-500.0,0.00029652,2]
[343346313,1732584552112,-500.0,0.00029652,2]
[343346314,1732584552132,-500.0,0.00029652,2]
[343346315,1732584552153,-500.0,0.00029652,2]
[343346316,1732584552173,-500.0,0.00029652,2]
[343346317,1732584552196,-382.14715981,0.00029652,2]
[343346318,1732584552216,-151.0,0.00029653,7]
[343346319,1732584552236,-151.176176,0.00029653,7]
[343346320,1732584552256,-151.278622,0.00029653,7]
[343346321,1732584552276,-151.0,0.00029653,7]
[343346322,1732584552296,-151.0,0.00029653,7]
[343346323,1732584552316,-151.0,0.00029653,7]
[343346324,1732584552336,-151.0,0.00029653,7]
[343346325,1732584552356,-251.753106,0.00029653,7]
[343346326,1732584552376,-151.0,0.00029653,7]
[343346327,1732584552396,-151.0,0.00029653,7]
[343346328,1732584552417,-151.0,0.00029653,7]
[343346329,1732584552438,-167.257166,0.00029653,7]
[343346330,1732584552460,-151.0,0.00029653,7]
[343346331,1732584552479,-151.0,0.00029653,7]
[343346332,1732584552499,-173.084905,0.00029653,7]
[343346333,1732584552523,-153.0,0.000297,30]
[343346334,1732584552544,-392.62,0.000297,2]
[343346335,1732584552564,-151.0,0.0003,120]
[343346336,1732584552584,-150.0,0.00030227,2]
[343346337,1732584552606,-394.0,0.00030857,2]
[343346338,1732584552627,-2655.03012068,0.00032826,2]
[343346339,1732584552649,-280.174789,0.00034,30]
[343346340,1732584554447,153.0,0.000294,30]
[343346341,1732584563665,353.36,0.000297,2]
[343346342,1732584570228,500.0,0.00029652,2]
[343346343,1732584570509,500.0,0.00029652,2]
[343346344,1732584570786,500.0,0.00029652,2]
[343346345,1732584570994,151.0,0.00029653,7]
[343346346,1732584571073,500.0,0.00029652,2]
[343346347,1732584571357,500.0,0.00029652,2]
[343346348,1732584571385,151.0,0.00029653,7]
[343346349,1732584571643,351.30459293,0.00029652,2]
[343346350,1732584571827,151.0,0.00029653,7]
[343346351,1732584572233,166.897292,0.00029653,7]
[343346354,1732584604070,186.0,0.00029652,2]
[343346355,1732584614714,152.86,0.00029643,10]
[343346356,1732584623015,151.0,0.00029653,7]
[343346357,1732584623389,154.271398,0.00029653,7]
[343346364,1732584632709,-3094.51386616,0.00029653,10]
[343346416,1732584638963,-652.42984194,0.00029653,10]
[343346418,1732584638975,-13808.85530934,0.00029653,10]
[343346429,1732584639065,-1949293.96988387,0.00029653,10]
[343346964,1732584644428,-633.84477124,0.00029653,10]
[343346967,1732584644439,-165185.00343685,0.00029653,10]
[343347032,1732584645048,230.2243,0.00026013,30]
[343347220,1732584646819,-1025.2688812,0.00029653,10]
[343347741,1732584652655,179.119,0.00030722,2]
[343347845,1732584654288,150.246,0.00030722,2]
[343347857,1732584660905,300.0,0.00029652,2]
[343347858,1732584663509,241.0,0.00029652,2]
[343347859,1732584683354,159.730906,0.00029653,7]
[343347860,1732584684843,272.50431131,0.00029399,2]
[343347861,1732584705239,761.4898,0.00026013,30]
[343347862,1732584711056,500.0,0.00029652,2]
[343347863,1732584711409,187.79388467,0.00029652,2]
[343347864,1732584713039,1389.33299643,0.00029553,2]
[343347868,1732584730460,235.1090081,0.00028653,2]
[343347869,1732584731492,446.84564175,0.00029553,2]
[343347870,1732584741754,221.040371,0.00013973,2]
[343347871,1732584744821,802.0,0.00028751,120]
[343347872,1732584745295,224.437555,0.00028653,2]
[343347873,1732584841648,524.0,0.000287,120]
[343347877,1732585513345,221.040371,0.00013973,2]
[343347878,1732585537166,-224.4375562,0.00027863,2]
[343347879,1732585537187,-495.91692892,0.00028373,2]
[343347880,1732585629133,-250.0,0.00028164,2]
[343347881,1732585629154,-235.69784187,0.00028373,2]
[343347882,1732585633115,-176.73877205,0.00028373,2]
[343347883,1732585635131,-5946.34394116,0.00028373,2]
[343347884,1732585635153,-164.103314,0.00028523,2]
[343347885,1732585635175,-300.0,0.00029397,2]
[343347886,1732585635196,-506.6346211,0.00029399,2]
[343347887,1732585635217,-501.10325114,0.00029399,2]
[343347888,1732585635240,-501.52556108,0.00029399,2]
[343347889,1732585635260,-555.56102397,0.00029399,2]
[343347890,1732585635283,-501.91434071,0.00029399,2]
[343347891,1732585635303,-501.8473598,0.00029399,2]
[343347892,1732585635325,-501.10441672,0.00029399,2]
[343347893,1732585635346,-196.0892555,0.00029399,2]
[343347894,1732585635368,-291.95178032,0.00029399,2]
[343347895,1732585635393,-264.65852055,0.00029399,2]
[343347896,1732585635416,-440.56530656,0.00029399,2]
[343347897,1732585635439,-500.74716615,0.00029399,2]
[343347898,1732585635461,-506.9033793,0.00029399,2]
[343347899,1732585635483,-211.61031707,0.00029547,2]
[343347900,1732585635506,-449.46163675,0.00029646,2]
[343347901,1732585635533,-532.17892663,0.00029646,2]
[343347902,1732585635555,-2087.8,0.00029647,2]
[343347903,1732585635578,-2087.8,0.00029647,2]
[343347904,1732585635601,-2087.8,0.00029647,2]
[343347905,1732585635623,-2087.8,0.00029647,2]
[343347906,1732585635646,-2087.8,0.00029647,2]
[343347907,1732585635668,-2087.8,0.00029647,2]
[343347908,1732585635690,-2087.8,0.00029647,2]
[343347909,1732585635717,-2087.8,0.00029647,2]
[343347910,1732585635739,-2087.8,0.00029647,2]
[343347911,1732585635762,-2087.8,0.00029647,2]
[343347912,1732585635786,-2087.8,0.00029647,2]
[343347913,1732585635808,-2087.8,0.00029647,2]
[343347914,1732585635833,-2087.8,0.00029647,2]
[343347915,1732585635862,-2087.8,0.00029647,2]
[343347916,1732585635884,-2087.8,0.00029647,2]
[343347917,1732585635906,-2087.8,0.00029647,2]
[343347918,1732585635928,-2087.8,0.00029647,2]
[343347919,1732585635951,-2087.8,0.00029647,2]
[343347920,1732585635973,-2087.8,0.00029647,2]
[343347921,1732585635997,-2087.8,0.00029647,2]
[343347922,1732585636020,-2087.8,0.00029647,2]
[343347923,1732585636046,-2087.8,0.00029647,2]
[343347924,1732585636070,-2087.8,0.00029647,2]
[343347925,1732585636092,-2087.8146481,0.00029647,2]
[343347926,1732585636116,-271.95089558,0.00029647,2]
[343347927,1732585636137,-151.0,0.00029648,7]
[343347928,1732585636159,-288.868175,0.00029648,7]
[343347929,1732585636181,-151.0,0.00029648,7]
[343347930,1732585636203,-154.28654,0.00029648,7]
[343347931,1732585636229,-318.71,0.000297,2]
[343347932,1732585636252,-216.9823821,0.000297,30]
[343347933,1732585636274,-155.784346,0.000297,19]
[343347934,1732585636299,-164.103314,0.00029893,2]
[343347935,1732585636321,-188.41,0.0003,2]
[343347936,1732585636343,-151.0,0.0003,120]
[343347937,1732585636368,-151.0,0.0003,120]
[343347938,1732585636390,-220.0,0.0003,2]
[343347939,1732585636413,-179.28136684,0.00030137,2]
[343347940,1732585636434,-150.0,0.00030829,2]
[343347941,1732585636564,-420.0,0.00031703,2]
[343347942,1732585636588,-151.0,0.00033342,120]
[343347943,1732585636611,-253.0,0.0003419,2]
[343347944,1732585636634,-1099.21918655,0.00034999,2]
[343347945,1732585636656,-4071.04110077,0.00035,120]
[343347946,1732585654134,-492.45337231,0.00034999,2]
[343347947,1732585766157,-152.056025,0.00029648,7]
[343347948,1732585766189,-286.84,0.000297,2]
[343347949,1732585781023,439.0,0.00028751,120]
[343348255,1732585841017,-7604.12845261,0.00029648,10]
[343348257,1732585841029,-52949.2678696,0.00029648,10]
[343348259,1732585841039,-583.09,0.00029648,10]
[343348261,1732585841051,-14202.6,0.00029648,10]
[343348264,1732585841062,-7951.68381146,0.00029648,10]
[343348266,1732585841073,-1949293.96988387,0.00029648,10]
[343348268,1732585841084,-1915.60996234,0.00029648,10]
[343348270,1732585841095,-94478.00992555,0.00029648,10]
[343348426,1732585843906,-4745.54616309,0.00029648,10]
[343348429,1732585843918,-721429.78391987,0.00029648,10]
[343348442,1732585852895,258.16,0.000297,2]
[343348443,1732585853882,483.39,0.00029638,3]
[343348444,1732585854162,966.78,0.00031008,3]
[343348445,1732585860885,300.0,0.00029647,2]
[343348446,1732585862187,1477.9410531,0.00034298,14]
[343348447,1732585862893,300.0,0.00029647,2]
[343348448,1732585864787,241.7,0.00029638,3]
[343348449,1732585865077,483.4,0.00031008,3]
[343348450,1732585875887,725.11,0.00029638,3]
[343348451,1732585881046,500.0,0.00029646,2]
[343348452,1732585881857,500.0,0.00029646,2]
[343348453,1732585882365,500.0,0.00029646,2]
[343348454,1732585882834,500.0,0.00029647,2]
[343348455,1732585883331,500.0,0.00029647,2]
[343348456,1732585883802,500.0,0.00029647,2]
[343348457,1732585884768,269.5931,0.00029647,2]
[343348458,1732585902360,535.2123107,0.00029646,2]
[343348459,1732585907121,500.0,0.00029646,2]
[343348460,1732585908095,500.0,0.00029646,2]
[343348461,1732585908721,500.0,0.00029646,2]
[343348462,1732585910243,500.0,0.00029647,2]
[343348463,1732585910757,500.0,0.00029647,2]
[343348464,1732585911271,170.37713807,0.00029647,2]
[343348465,1732585934604,1715.8765455,0.00029,2]
[343348466,1732585934627,3300.28017693,0.00029,2]
[343348467,1732585935294,212.7413024,0.000297,30]
[343348470,1732586754148,-174.99309045,0.00025205,2]
[343348471,1732586754170,-300.0,0.00028016,2]
[343348472,1732586754189,-39.30504463,0.00028016,2]
[343348474,1732586830077,-209.5733739,0.00027442,2]
[343348475,1732586830097,-1965.0,0.00028016,2]
[343348476,1732586830118,-633.48839549,0.00028017,2]
[343348477,1732586839399,-439.06115305,0.00028017,2]
[343348478,1732586842129,-467.19681526,0.00028017,2]
[343348479,1732586849103,-239.90143125,0.00028017,2]
[343348480,1732586852084,-326.48173094,0.00028017,2]
[343348481,1732586853839,6670.0,0.00022,10]
[343348483,1732586946104,-166.8370146,0.00027253,2]
[343348484,1732586946127,-22780.23009691,0.00028017,2]
[343348485,1732586946150,-304.26116026,0.00028473,2]
[343348486,1732586946172,-1053.8595683,0.00028573,2]
[343348487,1732586946197,-169.82446434,0.00028573,20]
[343348488,1732586946219,-100289.47259272,0.00029,7]
[343348489,1732586946244,-184.33777478,0.00029198,2]
[343348490,1732586946268,-246.00983282,0.00029298,7]
[343348491,1732586946291,-502.20248786,0.00029315,2]
[343348492,1732586946317,-505.36090852,0.00029315,2]
[343348493,1732586946342,-531.8164662,0.00029315,2]
[343348494,1732586946368,-157.45238963,0.00029315,2]
[343348495,1732586946393,-535.29891838,0.00029315,2]
[343348496,1732586946420,-500.0,0.00029315,2]
[343348497,1732586946447,-500.0,0.00029315,2]
[343348498,1732586946470,-279.15928989,0.00029315,2]
[343348499,1732586946492,-31689.70634221,0.0002955,2]
[343348500,1732586956757,-3539.2911737,0.0002955,2]
[343348501,1732586956783,-184.33777477,0.00029551,2]
[343348502,1732586956807,-167.84591378,0.00029646,2]
[343348503,1732586956939,-500.0,0.00029646,2]
[343348504,1732586956960,-231.32472963,0.00029646,2]
[343348505,1732586956980,-413.82246244,0.00029647,2]
[343348506,1732586957004,-232.34,0.000297,2]
[343348507,1732586957023,-243.0,0.0003,2]
[343348508,1732586957044,-203.477291,0.00030137,120]
[343348509,1732586957065,-160.54030339,0.00030137,2]
[343348510,1732586963141,-150.25951433,0.00033431,10]
[343348511,1732586963162,-3153.60150526,0.00034298,14]
[343348513,1732587024914,2277.85396283,0.00028651,2]
[343348514,1732587024936,5170.28741027,0.00028651,2]
[343348522,1732587032185,-2982.94551429,0.00029651,10]
[343348551,1732587038433,-1995743.23540997,0.00029651,10]
[343348554,1732587038446,-28858.98328557,0.00029651,10]
[343348557,1732587038458,-1140.0,0.00029651,10]
[343348727,1732587040275,-312.00686327,0.00029651,10]
[343348730,1732587040286,-2843.46,0.00029651,10]
[343348732,1732587040297,-1725.75,0.00029651,10]
[343348734,1732587040308,-55813.68127448,0.00029651,10]
[343349115,1732587044309,-1589.28754358,0.00029651,10]
[343349117,1732587044321,-10196.86531969,0.00029651,10]
[343349118,1732587044333,-12887.06908596,0.00029651,10]
[343349119,1732587044345,-1430.44489288,0.00029651,10]
[343349120,1732587044356,-1862310.20317888,0.00029651,10]
[343349133,1732587086103,3699.51713048,0.0002888,2]
[343349150,1732587710170,191.2653203,0.00013973,2]
[343349153,1732587954210,-501.86737722,0.00026878,2]
[343349154,1732587954230,-1705.68575363,0.00028356,2]
[343349156,1732588026101,-288.64538405,0.00028335,2]
[343349157,1732588041216,-186.90492041,0.00028335,2]
[343349158,1732588042088,-1920.14227044,0.00028335,2]
[343349159,1732588042110,-627.98416857,0.00028356,2]
[343349160,1732588042132,-430.5675785,0.00028878,2]
[343349161,1732588052152,-69.4324215,0.00028878,2]
[343349162,1732588052174,-146.70172946,0.00029298,7]
[343349163,1732588162173,-1699.69676528,0.00029298,7]
[343349165,1732588162199,-303.9107445,0.00029315,2]
[343349166,1732588162222,-551.53696571,0.00029315,2]
[343349167,1732588162249,-541.66831443,0.00029315,2]
[343349168,1732588162273,-300.0,0.00029399,2]
[343349169,1732588162298,-5566.21051955,0.000294,7]
[343349170,1732588162322,-340.40298508,0.00029551,2]
[343349171,1732588162345,-21121.86088378,0.00029609,3]
[343349172,1732588162368,-5669.883909,0.0002964,120]
[343349173,1732588162393,-500.0,0.00029643,2]
[343349174,1732588162416,-500.0,0.00029643,2]
[343349175,1732588162441,-500.0,0.00029644,2]
[343349176,1732588162466,-500.0,0.00029644,2]
[343349177,1732588162491,-500.0,0.00029644,2]
[343349178,1732588162519,-500.0,0.00029644,2]
[343349179,1732588162543,-500.0,0.00029644,2]
[343349180,1732588162568,-466.0278399,0.00029644,2]
[343349181,1732588162592,-151.0,0.00029644,7]
[343349182,1732588162616,-500.0,0.00029644,2]
[343349183,1732588162640,-500.0,0.00029644,2]
[343349184,1732588162669,-500.0,0.00029644,2]
[343349185,1732588162693,-500.0,0.00029644,2]
[343349186,1732588162716,-500.0,0.00029644,2]
[343349187,1732588162738,-500.0,0.00029644,2]
[343349188,1732588162762,-500.0,0.00029644,2]
[343349189,1732588162784,-500.0,0.00029644,2]
[343349190,1732588162809,-614.21435663,0.00029644,2]
[343349191,1732588162840,-502.54071886,0.00029649,2]
[343349192,1732588162866,-209.11,0.000297,2]
[343349193,1732588162888,-151.0,0.0003,120]
[343349194,1732588162910,-244.0,0.0003,2]
[343349195,1732588162932,-188.4,0.0003,2]
[343349196,1732588162955,-264.0,0.0003,2]
[343349197,1732588162976,-7970.36418188,0.0003,10]
[343349198,1732588163002,-1500.0,0.0003,2]
[343349199,1732588163024,-1023.75875979,0.0003,7]
[343349200,1732588163182,-420.0,0.00031705,2]
[343349201,1732588163205,-150.0,0.00031892,2]
[343349202,1732588163227,-179.111,0.00031892,2]
[343349203,1732588163254,-3090.91190636,0.0003242,14]
[343349204,1732588163276,-1403.09863046,0.00033,7]
[343349205,1732588163298,-500.0,0.00033431,10]
[343349206,1732588163320,-150.18,0.00033431,10]
[343349207,1732588163343,-151.0,0.00033534,120]
[343349208,1732588163365,-691.80062501,0.00033705,10]
[343349209,1732588163387,-150.18,0.00033705,10]
[343349210,1732588163409,-203.40636247,0.00033979,10]
[343349211,1732588163431,-300.0,0.00034192,2]
[343349212,1732588163452,-5000.0,0.00034298,14]
[343349230,1732588235230,324.0,0.0003,2]
[343349231,1732588236055,324.0,0.00033,2]
[343349232,1732588237411,188.19,0.000298,2]
[343349260,1732588238519,-68.5419403,0.00029644,10]
[343349264,1732588238548,-1995743.23540997,0.00029644,10]
[343349281,1732588238689,-54089.03244227,0.00029644,10]
[343349465,1732588240415,-947.19,0.00029644,10]
[343349783,1732588243591,-7746404.45964584,0.00029644,10]
[343349786,1732588243602,-3951105.43336066,0.00029644,10]
[343350066,1732588246397,-6205.61164452,0.00029644,10]
[343350090,1732588246605,-330.96600195,0.00029644,10]
[343350846,1732588318595,465.505,0.00029544,2]
[343350857,1732588635175,172.138788,0.00013973,2]
[343350861,1732589046621,174.85098,0.00028751,120]
[343350875,1732589137177,-869.07434969,0.00028142,2]
[343350876,1732589230131,-250.0,0.00027548,2]
[343350877,1732589230154,-3878.1660751,0.00027567,2]
[343350878,1732589230175,-731.6147708,0.00027767,2]
[343350879,1732589230200,-3484.94888891,0.00028142,2]
[343350880,1732589230222,-1676.51722313,0.00028642,3]
[343350881,1732589230248,-181.168787,0.00029641,7]
[343350882,1732589230270,-256.14495,0.00029641,7]
[343350883,1732589230291,-301.113358,0.00029645,7]
[343350884,1732589230313,-301.113358,0.00029645,7]
[343350885,1732589230335,-301.113358,0.00029645,7]